[Event "*** Titled Tuesday Blitz"]
[Site "Chess.com"]
[Date "2020.05.19"]
[Round "1"]
[White "JoachimMouhamad"]
[Black "emperor87"]
[Result "0-1"]
[WhiteElo "2315"]
[BlackElo "2610"]
[TimeControl "180+1"]
[EndTime "12:07:53 PDT"]
[Termination "emperor87 won by checkmate"]

1. e4 {[%clk 0:03:00.7]} 1... c6 {[%clk 0:02:59]} 2. d4 {[%clk 0:02:58.9]} 2...
d5 {[%clk 0:02:59]} 3. Nd2 {[%clk 0:02:57.2]} 3... dxe4 {[%clk 0:02:56.7]} 4.
Nxe4 {[%clk 0:02:57.6]} 4... Nd7 {[%clk 0:02:56.9]} 5. Ng5 {[%clk 0:02:55.4]}
5... Ngf6 {[%clk 0:02:51.8]} 6. Bc4 {[%clk 0:02:52.5]} 6... e6 {[%clk
0:02:51.6]} 7. c3 {[%clk 0:02:41.2]} 7... h6 {[%clk 0:02:49.4]} 8. N5f3 {[%clk
0:02:40.3]} 8... b6 {[%clk 0:02:47.5]} 9. Bf4 {[%clk 0:02:34.8]} 9... Nh5 {[%clk
0:02:43.7]} 10. Be3 {[%clk 0:02:28.5]} 10... Qc7 {[%clk 0:02:40.5]} 11. Ne2
{[%clk 0:02:26.7]} 11... Bb7 {[%clk 0:02:38.6]} 12. Qd2 {[%clk 0:02:25]} 12...
Bd6 {[%clk 0:02:37.9]} 13. O-O-O {[%clk 0:02:08.3]} 13... O-O-O {[%clk
0:02:36.5]} 14. Ng3 {[%clk 0:02:03.5]} 14... Nhf6 {[%clk 0:02:35.2]} 15. Qe2
{[%clk 0:01:58.6]} 15... Kb8 {[%clk 0:02:34]} 16. Kb1 {[%clk 0:01:52.9]} 16...
Ka8 {[%clk 0:02:33]} 17. Rhe1 {[%clk 0:01:42.6]} 17... c5 {[%clk 0:02:30.7]} 18.
Bd3 {[%clk 0:01:38]} 18... Rc8 {[%clk 0:02:25.2]} 19. dxc5 {[%clk 0:01:36.2]}
19... Nxc5 {[%clk 0:02:23.7]} 20. Bc2 {[%clk 0:01:35.9]} 20... Rhd8 {[%clk
0:02:21.9]} 21. Nd4 {[%clk 0:01:29]} 21... a6 {[%clk 0:02:15.3]} 22. f3 {[%clk
0:01:22.8]} 22... Bf4 {[%clk 0:02:09.2]} 23. Bxf4 {[%clk 0:01:19.8]} 23... Qxf4
{[%clk 0:02:08.9]} 24. Qe3 {[%clk 0:01:17.2]} 24... Qxe3 {[%clk 0:02:08.6]} 25.
Rxe3 {[%clk 0:01:18.1]} 25... Ka7 {[%clk 0:02:08.6]} 26. Rde1 {[%clk 0:01:15.6]}
26... b5 {[%clk 0:02:07.7]} 27. Re5 {[%clk 0:01:03.7]} 27... Kb6 {[%clk
0:02:05.4]} 28. Nge2 {[%clk 0:00:58]} 28... Nd5 {[%clk 0:02:03.4]} 29. Nb3
{[%clk 0:00:41.7]} 29... Nd7 {[%clk 0:02:02.3]} 30. Re4 {[%clk 0:00:38.2]} 30...
N7f6 {[%clk 0:02:02]} 31. Rd4 {[%clk 0:00:37.7]} 31... a5 {[%clk 0:01:58]} 32.
Red1 {[%clk 0:00:36]} 32... a4 {[%clk 0:01:55.5]} 33. Nbc1 {[%clk 0:00:34.8]}
33... Re8 {[%clk 0:01:52.1]} 34. a3 {[%clk 0:00:33.8]} 34... Rc4 {[%clk
0:01:47.9]} 35. Na2 {[%clk 0:00:32.6]} 35... Rxd4 {[%clk 0:01:47.4]} 36. Rxd4
{[%clk 0:00:30]} 36... e5 {[%clk 0:01:47.5]} 37. Rd2 {[%clk 0:00:29.4]} 37... e4
{[%clk 0:01:47.7]} 38. fxe4 {[%clk 0:00:26.7]} 38... Nxe4 {[%clk 0:01:47.1]} 39.
Bxe4 {[%clk 0:00:15.7]} 39... Rxe4 {[%clk 0:01:47.1]} 40. Nb4 {[%clk 0:00:15.2]}
40... Nxb4 {[%clk 0:01:47]} 41. axb4 {[%clk 0:00:16.1]} 41... Re6 {[%clk
0:01:43.6]} 42. g3 {[%clk 0:00:15.2]} 42... Kc7 {[%clk 0:01:41.1]} 43. Kc2
{[%clk 0:00:12.7]} 43... Be4+ {[%clk 0:01:38.8]} 44. Kc1 {[%clk 0:00:11]} 44...
f5 {[%clk 0:01:38]} 45. Nd4 {[%clk 0:00:10.6]} 45... Re5 {[%clk 0:01:37.9]} 46.
Rf2 {[%clk 0:00:09.7]} 46... g5 {[%clk 0:01:36.1]} 47. Kd2 {[%clk 0:00:09.7]}
47... Kb6 {[%clk 0:01:34.7]} 48. Kc1 {[%clk 0:00:07.7]} 48... Kc7 {[%clk
0:01:31.4]} 49. Kd2 {[%clk 0:00:07.8]} 49... Kd6 {[%clk 0:01:31.5]} 50. Kc1
{[%clk 0:00:07.8]} 50... Ke7 {[%clk 0:01:31.6]} 51. Kd2 {[%clk 0:00:08.1]} 51...
Kf6 {[%clk 0:01:31.6]} 52. Re2 {[%clk 0:00:08.2]} 52... h5 {[%clk 0:01:31.3]}
53. Rf2 {[%clk 0:00:07.8]} 53... h4 {[%clk 0:01:30.9]} 54. gxh4 {[%clk
0:00:07.3]} 54... gxh4 {[%clk 0:01:31.2]} 55. Ne2 {[%clk 0:00:07.9]} 55... Rd5+
{[%clk 0:01:30.2]} 56. Nd4 {[%clk 0:00:07.8]} 56... Kg5 {[%clk 0:01:25]} 57. Ke3
{[%clk 0:00:08.1]} 57... Re5 {[%clk 0:01:24.8]} 58. Kd2 {[%clk 0:00:06.2]} 58...
h3 {[%clk 0:01:23.8]} 59. Nf3+ {[%clk 0:00:05]} 59... Bxf3 {[%clk 0:01:23]} 60.
Rxf3 {[%clk 0:00:05.9]} 60... Kg4 {[%clk 0:01:20.3]} 61. Rg3+ {[%clk 0:00:05.5]}
61... Kh4 {[%clk 0:01:20.7]} 62. Rg8 {[%clk 0:00:05.9]} 62... f4 {[%clk
0:01:21]} 63. c4 {[%clk 0:00:05.5]} 63... bxc4 {[%clk 0:01:20.2]} 64. Rb8 {[%clk
0:00:04.8]} 64... f3 {[%clk 0:01:19.1]} 65. Rh8+ {[%clk 0:00:03.2]} 65... Kg4
{[%clk 0:01:18.7]} 66. Rg8+ {[%clk 0:00:04.1]} 66... Kf4 {[%clk 0:01:17.9]} 67.
Rf8+ {[%clk 0:00:04.3]} 67... Rf5 {[%clk 0:01:17.8]} 68. Rxf5+ {[%clk
0:00:04.2]} 68... Kxf5 {[%clk 0:01:17.4]} 69. Ke3 {[%clk 0:00:05.1]} 69... c3
{[%clk 0:01:17.5]} 70. bxc3 {[%clk 0:00:02.7]} 70... a3 {[%clk 0:01:17.7]} 71.
b5 {[%clk 0:00:03.6]} 71... a2 {[%clk 0:01:17.7]} 72. b6 {[%clk 0:00:04.5]}
72... a1=Q {[%clk 0:01:17.3]} 73. b7 {[%clk 0:00:05.4]} 73... Qb2 {[%clk
0:01:17.3]} 74. Kxf3 {[%clk 0:00:06.3]} 74... Qxb7+ {[%clk 0:01:17]} 75. Kg3
{[%clk 0:00:07.2]} 75... Qg2+ {[%clk 0:01:16.3]} 76. Kh4 {[%clk 0:00:06.7]}
76... Qg4# {[%clk 0:01:16]} 0-1

[Event "*** Titled Tuesday Blitz"]
[Site "Chess.com"]
[Date "2020.05.19"]
[Round "1"]
[White "Ati1517"]
[Black "Nikolaj_6"]
[Result "0-1"]
[WhiteElo "2279"]
[BlackElo "2575"]
[TimeControl "180+1"]
[EndTime "12:07:54 PDT"]
[Termination "Nikolaj_6 won by resignation"]

1. d4 {[%clk 0:03:00.8]} 1... Nf6 {[%clk 0:02:59.6]} 2. Nf3 {[%clk 0:03:00.5]}
2... g6 {[%clk 0:02:58.4]} 3. c4 {[%clk 0:03:00.1]} 3... Bg7 {[%clk 0:02:57.3]}
4. Nc3 {[%clk 0:02:59.1]} 4... c5 {[%clk 0:02:57.2]} 5. d5 {[%clk 0:02:57.7]}
5... O-O {[%clk 0:02:56.1]} 6. e4 {[%clk 0:02:57.4]} 6... d6 {[%clk 0:02:56.4]}
7. Be2 {[%clk 0:02:55.2]} 7... e6 {[%clk 0:02:56.6]} 8. O-O {[%clk 0:02:54.2]}
8... Re8 {[%clk 0:02:56.5]} 9. h3 {[%clk 0:02:49.8]} 9... exd5 {[%clk
0:02:55.2]} 10. exd5 {[%clk 0:02:49.6]} 10... Bf5 {[%clk 0:02:53.2]} 11. Bf4
{[%clk 0:02:47.8]} 11... a6 {[%clk 0:02:49.8]} 12. Qd2 {[%clk 0:02:45.6]} 12...
Ne4 {[%clk 0:02:44.8]} 13. Nxe4 {[%clk 0:02:43.3]} 13... Bxe4 {[%clk 0:02:44.9]}
14. Bh6 {[%clk 0:02:16.5]} 14... Bxf3 {[%clk 0:02:41.7]} 15. Bxf3 {[%clk
0:02:15.7]} 15... Bxh6 {[%clk 0:02:41.5]} 16. Qxh6 {[%clk 0:02:14.6]} 16... Nd7
{[%clk 0:02:41.6]} 17. Rfe1 {[%clk 0:02:10.2]} 17... Ne5 {[%clk 0:02:32.4]} 18.
Be2 {[%clk 0:02:09.6]} 18... Qa5 {[%clk 0:02:28.5]} 19. Red1 {[%clk 0:01:55.2]}
19... b5 {[%clk 0:02:25.8]} 20. cxb5 {[%clk 0:01:48.1]} 20... axb5 {[%clk
0:02:25.6]} 21. f4 {[%clk 0:01:48]} 21... Nc4 {[%clk 0:02:12.6]} 22. Bxc4 {[%clk
0:01:47.3]} 22... bxc4 {[%clk 0:02:13.5]} 23. f5 {[%clk 0:01:47.5]} 23... Qd8
{[%clk 0:01:57]} 24. fxg6 {[%clk 0:01:42]} 24... hxg6 {[%clk 0:01:55]} 25. Rf1
{[%clk 0:01:39.4]} 25... Qe7 {[%clk 0:01:48.9]} 26. Kh1 {[%clk 0:01:32.6]} 26...
Qe3 {[%clk 0:01:45.1]} 27. Qh4 {[%clk 0:01:22.9]} 27... Qd4 {[%clk 0:01:40.8]}
28. Qxd4 {[%clk 0:01:16.7]} 28... cxd4 {[%clk 0:01:40.8]} 29. Rac1 {[%clk
0:01:11]} 29... Rxa2 {[%clk 0:01:34.6]} 30. Rxc4 {[%clk 0:01:09.2]} 30... Rxb2
{[%clk 0:01:34.5]} 31. Rxd4 {[%clk 0:01:08.4]} 31... Ree2 {[%clk 0:01:34.5]} 32.
Rg4 {[%clk 0:01:05.6]} 32... Kg7 {[%clk 0:01:29.8]} 33. Rg5 {[%clk 0:01:04.6]}
33... Rbd2 {[%clk 0:01:29]} 34. Ra1 {[%clk 0:00:54.9]} 34... Re5 {[%clk
0:01:26.4]} 35. Rxe5 {[%clk 0:00:51]} 35... dxe5 {[%clk 0:01:27.3]} 36. Ra5
{[%clk 0:00:49.7]} 36... e4 {[%clk 0:01:26.3]} 37. Kg1 {[%clk 0:00:47.3]} 37...
f5 {[%clk 0:01:26.4]} 38. Ra7+ {[%clk 0:00:45.5]} 38... Kf6 {[%clk 0:01:26.4]}
39. Ra6+ {[%clk 0:00:45.6]} 39... Kg5 {[%clk 0:01:22.9]} 40. d6 {[%clk
0:00:43.4]} 40... Kf4 {[%clk 0:01:18.4]} 41. Kf1 {[%clk 0:00:38.9]} 41... g5
{[%clk 0:01:17.2]} 42. Ke1 {[%clk 0:00:35.2]} 42... Rd3 {[%clk 0:01:15.1]} 43.
Kf2 {[%clk 0:00:33.3]} 43... Rd2+ {[%clk 0:01:00.8]} 44. Ke1 {[%clk 0:00:32.2]}
44... e3 {[%clk 0:01:00.8]} 45. Rb6 {[%clk 0:00:25.2]} 45... Kg3 {[%clk
0:00:43.4]} 46. Rb5 {[%clk 0:00:24.2]} 46... Kf4 {[%clk 0:00:32.6]} 47. g3+
{[%clk 0:00:18.8]} 47... Ke4 {[%clk 0:00:31.6]} 48. Rb4+ {[%clk 0:00:17.7]}
48... Kf3 {[%clk 0:00:31.7]} 49. g4 {[%clk 0:00:17.9]} 49... f4 {[%clk
0:00:31.8]} 50. Rb6 {[%clk 0:00:17.5]} 50... Kg3 {[%clk 0:00:27.1]} 51. Rb5
{[%clk 0:00:16.4]} 51... Rxd6 {[%clk 0:00:26.1]} 52. Rxg5 {[%clk 0:00:15.6]}
52... f3 {[%clk 0:00:25.2]} 53. Rf5 {[%clk 0:00:15.6]} 53... Kg2 {[%clk
0:00:24.9]} 54. g5 {[%clk 0:00:15.2]} 54... Ra6 {[%clk 0:00:24.5]} 55. Kd1
{[%clk 0:00:15.3]} 55... e2+ {[%clk 0:00:23.4]} 56. Kd2 {[%clk 0:00:15.4]} 56...
Ra2+ {[%clk 0:00:21.7]} 0-1

[Event "*** Titled Tuesday Blitz"]
[Site "Chess.com"]
[Date "2020.05.19"]
[Round "1"]
[White "gmcorrales"]
[Black "Maksimus1998"]
[Result "0-1"]
[WhiteElo "2770"]
[BlackElo "2425"]
[TimeControl "180+1"]
[EndTime "12:07:57 PDT"]
[Termination "Maksimus1998 won by checkmate"]

1. e4 {[%clk 0:02:52.7]} 1... e6 {[%clk 0:02:56.2]} 2. d4 {[%clk 0:02:52.7]}
2... d5 {[%clk 0:02:56.1]} 3. e5 {[%clk 0:02:52.9]} 3... c5 {[%clk 0:02:55.1]}
4. c3 {[%clk 0:02:53.2]} 4... Qb6 {[%clk 0:02:53.2]} 5. Nf3 {[%clk 0:02:52.7]}
5... Nc6 {[%clk 0:02:53.8]} 6. a3 {[%clk 0:02:53]} 6... Bd7 {[%clk 0:02:52.7]}
7. b4 {[%clk 0:02:52.4]} 7... cxd4 {[%clk 0:02:52.1]} 8. cxd4 {[%clk 0:02:53.3]}
8... Rc8 {[%clk 0:02:52.1]} 9. Be3 {[%clk 0:02:53.2]} 9... Nh6 {[%clk
0:02:51.6]} 10. Bd3 {[%clk 0:02:51]} 10... Ng4 {[%clk 0:02:51.3]} 11. O-O {[%clk
0:02:51.6]} 11... Be7 {[%clk 0:02:51.4]} 12. Nbd2 {[%clk 0:02:42.8]} 12... Nxe3
{[%clk 0:02:50.9]} 13. fxe3 {[%clk 0:02:43]} 13... Nb8 {[%clk 0:02:50.6]} 14.
Nb3 {[%clk 0:02:42.9]} 14... Ba4 {[%clk 0:02:50]} 15. Qb1 {[%clk 0:02:38.6]}
15... Bxb3 {[%clk 0:02:48.3]} 16. Qxb3 {[%clk 0:02:37.9]} 16... O-O {[%clk
0:02:46.7]} 17. Ra2 {[%clk 0:02:37.5]} 17... h6 {[%clk 0:02:26.6]} 18. Raf2
{[%clk 0:02:36.5]} 18... Nc6 {[%clk 0:02:24.3]} 19. Bb1 {[%clk 0:02:35.8]} 19...
Qb5 {[%clk 0:02:12.1]} 20. h4 {[%clk 0:02:28.7]} 20... a5 {[%clk 0:01:37.2]} 21.
h5 {[%clk 0:02:22.1]} 21... Qc4 {[%clk 0:01:27.3]} 22. Qd1 {[%clk 0:02:18.1]}
22... axb4 {[%clk 0:01:24.4]} 23. Nd2 {[%clk 0:02:10.4]} 23... Qc3 {[%clk
0:01:12.7]} 24. Rf3 {[%clk 0:02:06.9]} 24... Bg5 {[%clk 0:01:07.1]} 25. Kh2
{[%clk 0:01:37]} 25... Nxd4 {[%clk 0:00:59.8]} 26. exd4 {[%clk 0:01:33.4]} 26...
Qxd2 {[%clk 0:00:59.7]} 27. Qa4 {[%clk 0:01:30.9]} 27... Qxd4 {[%clk 0:00:47.8]}
28. axb4 {[%clk 0:01:21.7]} 28... Qxe5+ {[%clk 0:00:46.9]} 29. Kh1 {[%clk
0:01:21.5]} 29... Rc4 {[%clk 0:00:40.5]} 30. g3 {[%clk 0:01:18]} 30... Rc1
{[%clk 0:00:23]} 31. Rxc1 {[%clk 0:01:09.1]} 31... Bxc1 {[%clk 0:00:23.9]} 32.
Qc2 {[%clk 0:01:09.4]} 32... Qe1+ {[%clk 0:00:23.8]} 33. Kg2 {[%clk 0:01:09.4]}
33... Qd2+ {[%clk 0:00:24.1]} 34. Rf2 {[%clk 0:01:09.8]} 34... Qxc2 {[%clk
0:00:23.7]} 35. Rxc2 {[%clk 0:01:10.7]} 35... Be3 {[%clk 0:00:21.6]} 36. Rc7
{[%clk 0:01:10.5]} 36... Rb8 {[%clk 0:00:21.5]} 37. Kf3 {[%clk 0:01:10.4]} 37...
Bb6 {[%clk 0:00:19.4]} 38. Rd7 {[%clk 0:01:10.9]} 38... Kf8 {[%clk 0:00:17.2]}
39. Bd3 {[%clk 0:01:11.4]} 39... Bd4 {[%clk 0:00:14.2]} 40. Bb5 {[%clk
0:01:10.4]} 40... b6 {[%clk 0:00:14.2]} 41. Bc6 {[%clk 0:01:10.1]} 41... Be5
{[%clk 0:00:13.7]} 42. b5 {[%clk 0:01:08.6]} 42... Rc8 {[%clk 0:00:13.3]} 43. g4
{[%clk 0:01:07.1]} 43... Rc7 {[%clk 0:00:13.4]} 44. Rd8+ {[%clk 0:01:06.8]}
44... Ke7 {[%clk 0:00:13.6]} 45. Ra8 {[%clk 0:01:01.6]} 45... Kf6 {[%clk
0:00:13.4]} 46. Rd8 {[%clk 0:01:01.1]} 46... Bd4 {[%clk 0:00:13.4]} 47. Kf4
{[%clk 0:00:58.5]} 47... Re7 {[%clk 0:00:12.1]} 48. Kf3 {[%clk 0:00:56.4]} 48...
Bc5 {[%clk 0:00:12.3]} 49. Kg3 {[%clk 0:00:53.5]} 49... g6 {[%clk 0:00:12.7]}
50. Kf3 {[%clk 0:00:52.2]} 50... gxh5 {[%clk 0:00:12.1]} 51. gxh5 {[%clk
0:00:53.1]} 51... Kg5 {[%clk 0:00:12.3]} 52. Rg8+ {[%clk 0:00:51.3]} 52... Kf6
{[%clk 0:00:10.8]} 53. Kg4 {[%clk 0:00:49.4]} 53... Be3 {[%clk 0:00:10.5]} 54.
Kf3 {[%clk 0:00:48.8]} 54... Bg5 {[%clk 0:00:10.2]} 55. Rb8 {[%clk 0:00:48.2]}
55... d4 {[%clk 0:00:08.1]} 56. Be4 {[%clk 0:00:46.5]} 56... Ke5 {[%clk
0:00:07.2]} 57. Rxb6 {[%clk 0:00:45.9]} 57... f5 {[%clk 0:00:07.5]} 58. Bd3
{[%clk 0:00:44.4]} 58... Rc7 {[%clk 0:00:07.4]} 59. Ra6 {[%clk 0:00:38.5]} 59...
Kf6 {[%clk 0:00:06.2]} 60. b6 {[%clk 0:00:38.2]} 60... Rc3 {[%clk 0:00:06.1]}
61. Ke2 {[%clk 0:00:35.5]} 61... Rb3 {[%clk 0:00:06.4]} 62. Bc4 {[%clk 0:00:36]}
62... Rb2+ {[%clk 0:00:06.4]} 63. Kd3 {[%clk 0:00:35.8]} 63... Rd2# {[%clk
0:00:06.4]} 0-1

[Event "*** Titled Tuesday Blitz"]
[Site "Chess.com"]
[Date "2020.05.19"]
[Round "1"]
[White "THE_PLAYER6"]
[Black "Ashedu66"]
[Result "1-0"]
[WhiteElo "2505"]
[BlackElo "2126"]
[TimeControl "180+1"]
[EndTime "12:07:58 PDT"]
[Termination "THE_PLAYER6 won on time"]

1. d4 {[%clk 0:03:00.9]} 1... d6 {[%clk 0:02:59.1]} 2. c4 {[%clk 0:02:56.5]}
2... e5 {[%clk 0:02:56.5]} 3. Nc3 {[%clk 0:02:54.4]} 3... exd4 {[%clk
0:02:55.1]} 4. Qxd4 {[%clk 0:02:53.4]} 4... Nc6 {[%clk 0:02:55]} 5. Qd1 {[%clk
0:02:38.8]} 5... g6 {[%clk 0:02:50.4]} 6. e4 {[%clk 0:02:31]} 6... Bg7 {[%clk
0:02:50]} 7. g3 {[%clk 0:02:08.6]} 7... Nge7 {[%clk 0:02:47.3]} 8. Bg2 {[%clk
0:02:08.6]} 8... O-O {[%clk 0:02:46.1]} 9. Nge2 {[%clk 0:02:08.8]} 9... f5
{[%clk 0:02:45.7]} 10. O-O {[%clk 0:02:07.4]} 10... Be6 {[%clk 0:02:38.2]} 11.
Nd5 {[%clk 0:02:03.1]} 11... fxe4 {[%clk 0:02:20.9]} 12. Bxe4 {[%clk 0:02:01.1]}
12... Ne5 {[%clk 0:02:04.7]} 13. Nef4 {[%clk 0:01:48.3]} 13... Bf7 {[%clk
0:01:54]} 14. Re1 {[%clk 0:01:19.9]} 14... N7c6 {[%clk 0:01:39.3]} 15. Bg2
{[%clk 0:00:47.4]} 15... Kh8 {[%clk 0:01:25.9]} 16. Bd2 {[%clk 0:00:18.4]} 16...
Nd4 {[%clk 0:00:50.6]} 17. Bc3 {[%clk 0:00:16]} 17... c5 {[%clk 0:00:49.6]} 18.
b3 {[%clk 0:00:11.8]} 18... Qd7 {[%clk 0:00:24.2]} 19. Rc1 {[%clk 0:00:11.1]}
19... Rae8 {[%clk 0:00:22]} 20. Bxd4 {[%clk 0:00:10.9]} 20... cxd4 {[%clk
0:00:21.3]} 21. Nd3 {[%clk 0:00:11.4]} 21... Bxd5 {[%clk 0:00:10.8]} 22. Bxd5
{[%clk 0:00:10.1]} 22... Qh3 {[%clk 0:00:09.2]} 23. Nxe5 {[%clk 0:00:08]} 23...
dxe5 {[%clk 0:00:08]} 24. Bg2 {[%clk 0:00:07.5]} 24... Qh6 {[%clk 0:00:07.2]}
25. Qd3 {[%clk 0:00:07.5]} 25... Qg5 {[%clk 0:00:06.4]} 26. h4 {[%clk
0:00:06.9]} 26... Qf6 {[%clk 0:00:06.5]} 27. Re2 {[%clk 0:00:06.4]} 27... h5
{[%clk 0:00:06.3]} 28. Rce1 {[%clk 0:00:06.8]} 28... Bh6 {[%clk 0:00:05.5]} 29.
Be4 {[%clk 0:00:07.2]} 29... Kg7 {[%clk 0:00:05.4]} 30. Kg2 {[%clk 0:00:07.6]}
30... b6 {[%clk 0:00:05.4]} 31. a4 {[%clk 0:00:07.5]} 31... Re7 {[%clk
0:00:05.5]} 32. a5 {[%clk 0:00:06.8]} 32... Ref7 {[%clk 0:00:05.7]} 33. Rf1
{[%clk 0:00:06.1]} 33... Qd6 {[%clk 0:00:05.2]} 34. axb6 {[%clk 0:00:06]} 34...
axb6 {[%clk 0:00:05.4]} 35. Bd5 {[%clk 0:00:06.6]} 35... Rf6 {[%clk 0:00:05.2]}
36. Qe4 {[%clk 0:00:06.8]} 36... Re8 {[%clk 0:00:04.4]} 37. Qd3 {[%clk
0:00:06.2]} 37... Kh7 {[%clk 0:00:04.2]} 38. Re4 {[%clk 0:00:06.5]} 38... Bg7
{[%clk 0:00:04.4]} 39. Qe2 {[%clk 0:00:06.6]} 39... Ref8 {[%clk 0:00:04.1]} 40.
Qd3 {[%clk 0:00:04.8]} 40... Rf5 {[%clk 0:00:03.4]} 41. Re2 {[%clk 0:00:05.1]}
41... Qf6 {[%clk 0:00:03.1]} 42. Be4 {[%clk 0:00:05.6]} 42... Rf4 {[%clk
0:00:01.6]} 43. gxf4 {[%clk 0:00:05.5]} 43... Qxh4 {[%clk 0:00:01.7]} 44. Qg3
{[%clk 0:00:05.7]} 44... Qf6 {[%clk 0:00:01.7]} 45. fxe5 {[%clk 0:00:05.4]}
45... Qe7 {[%clk 0:00:01.9]} 46. Qxg6+ {[%clk 0:00:05.2]} 46... Kg8 {[%clk
0:00:01.6]} 47. Bd5+ {[%clk 0:00:05.5]} 47... Kh8 {[%clk 0:00:01.3]} 48. Qxh5+
{[%clk 0:00:05.9]} 1-0

[Event "*** Titled Tuesday Blitz"]
[Site "Chess.com"]
[Date "2020.05.19"]
[Round "1"]
[White "L_lorenzo"]
[Black "JustKid"]
[Result "1/2-1/2"]
[WhiteElo "1999"]
[BlackElo "2475"]
[TimeControl "180+1"]
[EndTime "12:07:58 PDT"]
[Termination "Game drawn - insufficient material"]

1. d4 {[%clk 0:02:59.4]} 1... Nf6 {[%clk 0:02:58.9]} 2. c4 {[%clk 0:02:59.4]}
2... g6 {[%clk 0:02:59.8]} 3. Nc3 {[%clk 0:02:58.8]} 3... Bg7 {[%clk 0:03:00]}
4. e4 {[%clk 0:02:58.9]} 4... d6 {[%clk 0:03:00.9]} 5. f3 {[%clk 0:02:51.3]}
5... O-O {[%clk 0:03:01]} 6. Bg5 {[%clk 0:02:48.8]} 6... Nc6 {[%clk 0:03:00.2]}
7. Nge2 {[%clk 0:02:43.4]} 7... a6 {[%clk 0:02:59.4]} 8. a4 {[%clk 0:02:41.9]}
8... Bd7 {[%clk 0:02:55.2]} 9. Qd2 {[%clk 0:02:38.6]} 9... b5 {[%clk 0:02:50]}
10. cxb5 {[%clk 0:02:28.6]} 10... axb5 {[%clk 0:02:50.4]} 11. Nxb5 {[%clk
0:02:28.4]} 11... Na5 {[%clk 0:02:50.5]} 12. Nc1 {[%clk 0:02:21.9]} 12... c6
{[%clk 0:02:44.1]} 13. Nc3 {[%clk 0:02:16.6]} 13... Qb6 {[%clk 0:02:28.1]} 14.
Be3 {[%clk 0:02:13.7]} 14... Rfb8 {[%clk 0:02:24.3]} 15. Ra2 {[%clk 0:02:10.3]}
15... Nb3 {[%clk 0:02:06.2]} 16. Nxb3 {[%clk 0:02:08.3]} 16... Qxb3 {[%clk
0:02:07.1]} 17. Bd3 {[%clk 0:01:53.8]} 17... c5 {[%clk 0:02:07.2]} 18. dxc5
{[%clk 0:01:29.8]} 18... Ne8 {[%clk 0:02:06]} 19. O-O {[%clk 0:01:26.8]} 19...
Be6 {[%clk 0:01:58.5]} 20. Bc2 {[%clk 0:01:10.6]} 20... Bxc3 {[%clk 0:01:53.1]}
21. Bxb3 {[%clk 0:01:03.3]} 21... Bxd2 {[%clk 0:01:49.8]} 22. Bxd2 {[%clk
0:00:58.9]} 22... Bxb3 {[%clk 0:01:49.1]} 23. Ra3 {[%clk 0:00:58]} 23... Rxa4
{[%clk 0:01:47.4]} 24. Rxa4 {[%clk 0:00:57.3]} 24... Bxa4 {[%clk 0:01:48.3]} 25.
cxd6 {[%clk 0:00:56.7]} 25... Nxd6 {[%clk 0:01:48.3]} 26. Bc3 {[%clk 0:00:56.6]}
26... Nb5 {[%clk 0:01:36.4]} 27. Be5 {[%clk 0:00:53.5]} 27... Rd8 {[%clk
0:01:35.2]} 28. Ra1 {[%clk 0:00:53.1]} 28... Rd1+ {[%clk 0:01:34.3]} 29. Rxd1
{[%clk 0:00:53]} 29... Bxd1 {[%clk 0:01:35.2]} 30. Kf2 {[%clk 0:00:52.6]} 30...
f6 {[%clk 0:01:35]} 31. Bb8 {[%clk 0:00:52.2]} 31... Kf7 {[%clk 0:01:34.8]} 32.
Ke3 {[%clk 0:00:51.7]} 32... e5 {[%clk 0:01:34.6]} 33. Kd2 {[%clk 0:00:51.4]}
33... Bb3 {[%clk 0:01:34.4]} 34. Kd3 {[%clk 0:00:41.2]} 34... Ke6 {[%clk
0:01:33.8]} 35. f4 {[%clk 0:00:41.1]} 35... exf4 {[%clk 0:01:31.7]} 36. Bxf4
{[%clk 0:00:37.7]} 36... Nd6 {[%clk 0:01:29.3]} 37. g4 {[%clk 0:00:30.8]} 37...
Bc4+ {[%clk 0:01:24.7]} 38. Kd4 {[%clk 0:00:28.8]} 38... Be2 {[%clk 0:01:24.2]}
39. g5 {[%clk 0:00:28.1]} 39... f5 {[%clk 0:01:23.3]} 40. exf5+ {[%clk
0:00:25.6]} 40... Nxf5+ {[%clk 0:01:24.2]} 41. Kc5 {[%clk 0:00:22.9]} 41... Ne7
{[%clk 0:01:19.1]} 42. b4 {[%clk 0:00:21.5]} 42... Nd5 {[%clk 0:01:18.7]} 43.
Bd2 {[%clk 0:00:17.9]} 43... Nc7 {[%clk 0:01:18.3]} 44. h4 {[%clk 0:00:16.2]}
44... Kf5 {[%clk 0:01:16.9]} 45. Kc6 {[%clk 0:00:12.4]} 45... Nb5 {[%clk
0:01:16.3]} 46. Kc5 {[%clk 0:00:11.8]} 46... Kg4 {[%clk 0:01:16.1]} 47. Be1
{[%clk 0:00:11.7]} 47... Kf5 {[%clk 0:01:14]} 48. Bd2 {[%clk 0:00:11.2]} 48...
Ke5 {[%clk 0:01:14.3]} 49. Be1 {[%clk 0:00:10.8]} 49... Ke6 {[%clk 0:01:14.7]}
50. Bd2 {[%clk 0:00:10.9]} 50... Nd6 {[%clk 0:01:15.2]} 51. Be1 {[%clk
0:00:09.2]} 51... Nf5 {[%clk 0:01:15.4]} 52. b5 {[%clk 0:00:08.9]} 52... Bf3
{[%clk 0:01:15.2]} 53. Kb6 {[%clk 0:00:08.2]} 53... Nd6 {[%clk 0:01:15.3]} 54.
Kc5 {[%clk 0:00:07.3]} 54... Nb7+ {[%clk 0:01:14.6]} 55. Kb6 {[%clk 0:00:07.6]}
55... Kf5 {[%clk 0:01:15.1]} 56. Kc7 {[%clk 0:00:06.6]} 56... Ke6 {[%clk
0:01:16]} 57. b6 {[%clk 0:00:06.7]} 57... Nd6 {[%clk 0:01:16.5]} 58. Bg3 {[%clk
0:00:05.5]} 58... Ne4 {[%clk 0:01:16]} 59. b7 {[%clk 0:00:03.5]} 59... Nc5
{[%clk 0:01:15.1]} 60. b8=Q {[%clk 0:00:03.3]} 60... Na6+ {[%clk 0:01:15.3]} 61.
Kc8 {[%clk 0:00:02.4]} 61... Nxb8 {[%clk 0:01:16.2]} 62. Kxb8 {[%clk 0:00:02.7]}
62... Kf5 {[%clk 0:01:17]} 63. Be1 {[%clk 0:00:02.9]} 63... Kg4 {[%clk
0:01:17.9]} 64. Kc7 {[%clk 0:00:02.9]} 64... Kh5 {[%clk 0:01:18.8]} 65. Kd6
{[%clk 0:00:03.3]} 65... Bg4 {[%clk 0:01:19.7]} 66. Ke7 {[%clk 0:00:03.8]} 66...
h6 {[%clk 0:01:20.6]} 67. gxh6 {[%clk 0:00:03.6]} 67... Kxh6 {[%clk 0:01:20.6]}
68. Kf6 {[%clk 0:00:04.5]} 68... Kh5 {[%clk 0:01:21.5]} 69. Bf2 {[%clk
0:00:04.3]} 69... Bf5 {[%clk 0:01:22.4]} 70. Kg7 {[%clk 0:00:04.1]} 70... g5
{[%clk 0:01:22.1]} 71. hxg5 {[%clk 0:00:03.9]} 71... Kxg5 {[%clk 0:01:23]}
1/2-1/2